bitfinex/quotes_BTCUSD_20240613
["timestamp","ask_amount","ask_price","bid_price","bid_amount"]
[1718293511638,0.07215996,66620.0,66613.0,0.26731993]
[1718293512045,0.2488,66627.0,66613.0,0.26731993]
[1718293512453,0.2488,66627.0,66617.0,0.15011]
[1718293512616,0.07215996,66622.0,66618.0,0.023]
[1718293512822,0.0717341,66622.0,66616.0,0.150113]
[1718293513199,0.0717341,66622.0,66603.0,0.28358474]
[1718293513200,0.0917341,66622.0,66620.0,0.014]
[1718293513409,0.732102,66621.0,66620.0,0.014]
[1718293513536,0.582,66621.0,66620.0,0.014]
[1718293514138,0.562,66621.0,66620.0,0.014]
[1718293514385,0.582,66621.0,66620.0,0.014]
[1718293514732,0.582,66621.0,66607.0,0.5]
[1718293514733,0.02,66620.0,66607.0,0.5]
[1718293514939,0.07215996,66614.0,66608.0,0.023]
[1718293515143,0.07215996,66614.0,66612.0,0.150122]
[1718293515381,0.07215996,66614.0,66608.0,0.023]
[1718293515747,0.22227796,66614.0,66608.0,0.023]
[1718293516022,0.02,66612.0,66608.0,0.023]
[1718293516302,0.02,66612.0,66608.0,0.014]
[1718293516742,0.60051,66611.0,66608.0,0.014]
[1718293516969,0.02,66596.0,66588.0,0.51588886]
[1718293517183,0.07215996,66593.0,66579.0,0.43295979]
[1718293517391,0.07215996,66593.0,66580.0,0.14431993]
[1718293517392,0.60051,66592.0,66580.0,0.14431993]
[1718293517627,0.62051,66592.0,66580.0,0.14431993]
[1718293517838,0.62051,66592.0,66580.0,0.29451393]
[1718293517839,0.02,66588.0,66580.0,0.29451393]
[1718293518081,0.60051,66587.0,66580.0,0.29451393]
[1718293518728,0.60051,66587.0,66581.0,0.15019]
[1718293518925,0.60051,66587.0,66581.0,0.29450993]
[1718293519128,0.60051,66587.0,66582.0,0.15019]
[1718293519326,0.60051,66587.0,66583.0,0.150188]
[1718293519503,0.60051,66587.0,66584.0,0.023]
[1718293519934,0.60051,66587.0,66582.0,0.023]
[1718293520395,0.60051,66587.0,66586.0,0.150181]
[1718293520605,0.60051,66587.0,66586.0,0.31750093]
[1718293520753,0.60151,66587.0,66586.0,0.31750093]
[1718293520935,0.60051,66587.0,66586.0,0.31750093]
[1718293521439,0.60151,66587.0,66586.0,0.023]
[1718293521640,1.05664,66587.0,66586.0,0.07884229]
[1718293521886,0.02,66585.0,66584.0,0.009]
[1718293522074,0.02,66580.0,66571.0,0.00085]
[1718293522277,0.07215996,66572.0,66571.0,0.00085]
[1718293522660,0.93066996,66572.0,66571.0,0.00085]
[1718293523077,0.85851,66572.0,66571.0,0.00085]
[1718293523954,0.60051,66572.0,66571.0,0.29538493]
[1718293524360,0.60051,66572.0,66571.0,0.30438493]
[1718293524497,0.60151,66572.0,66571.0,0.32738493]
[1718293524699,0.60151,66572.0,66571.0,0.03285]
[1718293525106,0.91191,66572.0,66571.0,0.00985]
[1718293525342,0.91091,66572.0,66571.0,0.00985]
[1718293525686,0.91091,66572.0,66571.0,0.00085]
[1718293525835,0.60151,66572.0,66571.0,0.00985]
[1718293526041,0.60151,66572.0,66571.0,0.160065]
[1718293526249,0.60151,66572.0,66571.0,0.00985]
[1718293526401,0.60051,66572.0,66571.0,0.00085]
[1718293526603,0.60051,66572.0,66571.0,0.02385]
[1718293526802,0.60151,66572.0,66571.0,0.32738493]
[1718293527010,0.60151,66572.0,66571.0,0.17716993]
[1718293527237,0.86511,66572.0,66571.0,0.00985]
[1718293527731,0.86411,66572.0,66571.0,0.00985]
[1718293527961,0.86511,66572.0,66571.0,0.00985]
[1718293528171,0.86311,66572.0,66571.0,0.00085]
[1718293528375,1.347923,66572.0,66571.0,0.00985]
[1718293528599,0.170233,66563.0,66552.0,0.5]
[1718293528806,1.07030296,66563.0,66552.0,0.5]
[1718293529025,1.42330296,66563.0,66549.0,0.00855]
[1718293530534,1.40330296,66563.0,66549.0,0.00855]
[1718293530751,1.25306996,66563.0,66554.0,0.150251]
[1718293530947,1.25306996,66563.0,66549.0,0.00855]
[1718293531181,1.40330296,66563.0,66549.0,0.00855]
[1718293531377,1.27306996,66563.0,66562.0,0.01354]
[1718293531599,0.84791,66563.0,66562.0,0.01354]
[1718293532055,0.87691,66563.0,66562.0,0.01354]
[1718293532272,1.027143,66563.0,66562.0,0.01354]
[1718293532478,1.32761,66563.0,66562.0,0.01354]
[1718293532608,1.018143,66563.0,66562.0,0.00854]
[1718293532861,1.31861,66563.0,66562.0,0.00854]
[1718293533012,1.019143,66563.0,66562.0,0.00854]
[1718293533221,1.41961,66563.0,66562.0,0.00854]
[1718293533428,2.22869693,66563.0,66562.0,0.00854]
[1718293533627,2.22869693,66563.0,66549.0,0.00855]
[1718293533628,0.270249,66556.0,66549.0,0.00855]
[1718293533839,1.444659,66556.0,66549.0,0.00855]
[1718293534147,0.86011,66556.0,66549.0,0.00855]
[1718293534336,0.60051,66556.0,66549.0,0.50855]
[1718293534752,0.60051,66556.0,66554.0,0.150253]
[1718293534985,0.60051,66556.0,66549.0,0.50855]
[1718293535149,0.60051,66556.0,66549.0,0.00855]
[1718293535390,0.60151,66556.0,66555.0,0.01455]
[1718293535579,0.60051,66556.0,66555.0,0.00855]
[1718293535781,0.62051,66556.0,66555.0,0.00855]
[1718293536093,1.86347693,66556.0,66555.0,0.01455]
[1718293536299,1.46297893,66556.0,66555.0,0.01455]
[1718293536509,1.86347693,66556.0,66555.0,0.01455]
[1718293536853,0.60151,66556.0,66555.0,0.01455]
[1718293538015,0.60051,66556.0,66555.0,0.00855]
[1718293538429,0.60151,66556.0,66555.0,0.01455]
[1718293538680,1.333359,66556.0,66555.0,0.00855]
[1718293539015,1.15611,66556.0,66555.0,0.01455]
[1718293539245,0.60051,66556.0,66555.0,0.00855]
[1718293539708,0.60051,66556.0,66555.0,0.01355]
[1718293540771,0.750759,66556.0,66555.0,0.01355]
[1718293540975,0.770759,66556.0,66555.0,0.01355]
[1718293541171,0.750759,66556.0,66555.0,0.00855]
[1718293541353,1.071257,66556.0,66555.0,0.00855]
[1718293541556,1.171257,66556.0,66555.0,0.01355]
[1718293541778,2.29322786,66556.0,66555.0,0.00855]
[1718293542154,2.29322786,66556.0,66536.0,0.0601]
[1718293542155,0.05,66515.0,66512.0,0.02733524]
[1718293542359,0.02,66539.0,66520.0,0.15033]
[1718293542360,0.05,66522.0,66520.0,0.15033]
[1718293542489,0.2565,66525.0,66514.0,0.2]
[1718293542690,0.05,66524.0,66514.0,0.2]
[1718293542899,0.05,66526.0,66523.0,0.2]
[1718293543340,0.05,66526.0,66514.0,0.150342]
[1718293543519,0.05,66516.0,66510.0,0.01549209]
[1718293543719,0.60128,66515.0,66511.0,0.14431993]
[1718293544341,0.60128,66515.0,66514.0,0.150344]
[1718293544885,0.60128,66515.0,66511.0,0.14431993]
[1718293545422,0.60228,66515.0,66512.0,0.01]
[1718293545633,0.60228,66515.0,66512.0,0.033]
[1718293545770,0.05,66512.0,66506.0,0.31668587]
[1718293545976,0.65128,66511.0,66506.0,0.2610058]
[1718293546338,0.65128,66511.0,66506.0,0.11668587]
[1718293546339,0.05,66507.0,66506.0,0.11668587]
[1718293546511,0.65128,66507.0,66506.0,0.10085]
[1718293548093,0.65228,66507.0,66506.0,0.10085]
[1718293548334,0.80264,66507.0,66506.0,0.10085]
[1718293548540,0.92888,66507.0,66506.0,0.10885]
[1718293548740,0.92888,66507.0,66506.0,0.10085]
[1718293548942,1.021868,66507.0,66506.0,0.10085]
[1718293549157,1.65055993,66507.0,66506.0,0.10885]
[1718293549358,1.77415993,66507.0,66506.0,0.10885]
[1718293549553,1.77415993,66507.0,66506.0,0.10085]
[1718293549554,1.25488,66507.0,66506.0,0.10085]
[1718293549800,1.25388,66507.0,66506.0,0.10085]
[1718293549952,1.25388,66507.0,66506.0,0.10485]
[1718293550147,1.25388,66507.0,66506.0,0.10085]
[1718293550148,1.40424,66507.0,66506.0,0.10085]
[1718293550356,1.54855993,66507.0,66506.0,0.10085]
[1718293550534,1.64855993,66507.0,66506.0,0.10085]
[1718293550734,0.3806,66489.0,66472.0,0.140151]
[1718293551081,0.2492,66487.0,66480.0,0.01762836]
[1718293551286,0.60128,66486.0,66481.0,0.14431993]
[1718293551700,0.05,66484.0,66472.0,0.28]
[1718293551902,0.60128,66483.0,66482.0,0.150414]
[1718293552051,0.60128,66483.0,66482.0,0.150416]
[1718293552249,0.60128,66483.0,66473.0,0.13431993]
[1718293552679,0.60128,66483.0,66481.0,0.001]
[1718293553668,0.60128,66483.0,66475.0,0.023]
[1718293553863,0.60128,66483.0,66476.0,0.14431993]
[1718293554086,0.60109918,66483.0,66477.0,0.123]
[1718293554290,0.60409918,66483.0,66478.0,0.14431993]
[1718293554468,0.5677,66482.0,66479.0,0.023]
[1718293554665,0.60109918,66481.0,66480.0,0.29474093]
[1718293555109,0.60109918,66481.0,66480.0,0.31774093]
[1718293555862,0.60109918,66481.0,66480.0,0.16731993]
[1718293556484,0.60109918,66481.0,66480.0,1.16816193]
[1718293556686,0.60109918,66481.0,66480.0,1.27564093]
[1718293557087,0.60109918,66481.0,66480.0,1.27764093]
[1718293557316,0.60109918,66481.0,66480.0,1.11974093]
[1718293557523,0.60109918,66481.0,66480.0,0.26931993]
[1718293558182,0.60209918,66481.0,66480.0,1.64848293]
[1718293558382,0.60162054,66481.0,66480.0,1.80638293]
[1718293558561,0.60062054,66481.0,66480.0,1.48354093]
[1718293558774,0.60062054,66481.0,66480.0,0.82564093]
[1718293558980,0.60262054,66481.0,66480.0,0.27731993]
[1718293559178,0.60262054,66481.0,66480.0,0.26731993]
[1718293559179,0.60162054,66481.0,66480.0,0.26731993]
[1718293559413,0.60162054,66481.0,66480.0,1.11774093]
[1718293559623,0.60162054,66481.0,66480.0,1.14982449]
[1718293559831,0.60062054,66481.0,66480.0,1.13582449]
[1718293560241,0.60062054,66481.0,66480.0,1.14482449]
[1718293560242,0.60162054,66481.0,66480.0,1.14482449]
[1718293560444,0.60162054,66481.0,66480.0,1.44566649]
[1718293560591,0.60162054,66481.0,66480.0,1.12674093]
[1718293560998,0.60262054,66481.0,66480.0,1.22809336]
[1718293561203,0.60262054,66481.0,66480.0,0.52809336]
[1718293561405,0.60262054,66481.0,66480.0,0.17631993]
[1718293561600,0.60162054,66481.0,66480.0,0.16731993]
[1718293562024,0.60162054,66481.0,66480.0,0.52974093]
[1718293562242,0.60162054,66481.0,66480.0,0.85058293]
[1718293562446,0.60162054,66481.0,66480.0,1.04075841]
[1718293562817,0.60162054,66481.0,66480.0,1.05475841]
[1718293563023,0.60062054,66481.0,66480.0,1.04075841]
[1718293563229,0.60062054,66481.0,66480.0,0.73632756]
[1718293563434,0.60162054,66481.0,66480.0,1.52991156]
[1718293563711,0.60162054,66481.0,66480.0,1.83075356]
[1718293564133,0.60162054,66481.0,66480.0,1.93075356]
[1718293564362,0.60162054,66481.0,66480.0,2.44366756]
[1718293564575,0.60162054,66481.0,66480.0,2.14282556]
[1718293564794,0.58562054,66481.0,66480.0,2.19282556]
[1718293565008,0.46607596,66527.0,66510.0,0.150353]
[1718293565009,0.05,66515.0,66510.0,0.150353]
[1718293565206,0.05,66519.0,66510.0,0.150353]
[1718293565410,0.306,66523.0,66522.0,0.150326]
[1718293565845,0.306,66523.0,66514.0,0.150343]
[1718293566108,0.306,66523.0,66515.0,0.14431993]
[1718293566482,0.256,66523.0,66522.0,0.150326]
[1718293566688,0.25,66527.0,66522.0,0.14431993]
[1718293566888,0.05,66524.0,66523.0,0.023]
[1718293567273,0.25,66527.0,66526.0,0.150317]
[1718293567469,0.2973,66534.0,66526.0,0.16731993]
[1718293567774,0.05,66532.0,66527.0,0.16731993]
[1718293568379,0.05,66533.0,66527.0,0.16731993]
[1718293568587,0.05,66533.0,66532.0,0.150303]
[1718293568796,0.05,66533.0,66527.0,0.16731993]
[1718293568797,0.05,66532.0,66527.0,0.16731993]
[1718293569001,0.05,66529.0,66527.0,0.023]
[1718293569379,0.05,66528.0,66517.0,0.2]
[1718293569561,0.05,66532.0,66525.0,0.2]
[1718293569768,0.05,66537.0,66536.0,0.150294]
[1718293569986,0.2968,66547.0,66543.0,0.150278]
[1718293570188,0.2468,66547.0,66536.0,0.14431993]
[1718293570343,0.2468,66547.0,66537.0,0.023]
[1718293570344,0.05,66545.0,66537.0,0.023]
[1718293570545,0.2468,66547.0,66546.0,0.150271]
[1718293570761,0.12215996,66563.0,66546.0,0.16731993]
[1718293570762,0.05,66558.0,66546.0,0.16731993]
[1718293570968,0.05,66560.0,66559.0,0.150242]
[1718293571165,0.3024,66565.0,66559.0,0.150242]
[1718293571166,0.05,66565.0,66561.0,0.150238]
[1718293571365,0.05,66565.0,66561.0,0.31755793]
[1718293571687,0.05,66565.0,66561.0,0.20701659]
[1718293571885,0.05093501,66562.0,66561.0,0.08635891]
[1718293572375,0.05,66551.0,66550.0,0.03715283]
[1718293572515,0.3339,66561.0,66550.0,0.14431993]
[1718293572516,0.05,66559.0,66550.0,0.14431993]
[1718293572808,0.00093501,66562.0,66561.0,0.150238]
[1718293572809,0.05193501,66562.0,66561.0,0.150238]
[1718293573006,0.05193501,66562.0,66561.0,0.31755793]
[1718293573007,0.00193501,66562.0,66561.0,0.31755793]
[1718293573278,0.00093501,66562.0,66561.0,0.32955793]
[1718293573478,0.00093501,66562.0,66561.0,0.75003393]
[1718293573689,0.00493501,66562.0,66561.0,0.99549554]
[1718293573901,0.00493501,66562.0,66561.0,0.50294845]
[1718293574082,0.00493501,66562.0,66561.0,0.41755793]
[1718293574530,0.00493501,66562.0,66561.0,0.65545793]
[1718293574878,0.009427,66574.0,66562.0,0.3579]
[1718293575081,0.009427,66574.0,66567.0,0.150222]
[1718293575287,0.009427,66574.0,66568.0,0.25032792]
[1718293575499,0.009427,66574.0,66573.0,0.150211]
[1718293575676,0.009427,66574.0,66573.0,0.77585293]
[1718293575875,0.009427,66574.0,66573.0,1.00375293]
[1718293576139,0.009427,66574.0,66573.0,1.08375293]
[1718293576271,0.009427,66574.0,66573.0,1.38417493]
[1718293576470,0.009427,66574.0,66573.0,1.10375293]
[1718293576686,0.010427,66574.0,66573.0,1.08375293]
[1718293577075,0.010427,66574.0,66573.0,0.78333093]
[1718293577489,0.010427,66574.0,66573.0,0.41953093]
[1718293578110,0.010427,66574.0,66573.0,0.26931993]
[1718293578337,0.556027,66574.0,66573.0,0.16731993]
[1718293578537,0.05,66572.0,66564.0,0.2]
[1718293578738,0.555027,66574.0,66564.0,0.2]
[1718293578739,0.05,66573.0,66572.0,0.150213]
[1718293578943,0.555027,66574.0,66572.0,0.150213]
[1718293579147,0.555027,66574.0,66573.0,0.152211]
[1718293579351,0.009427,66574.0,66573.0,0.252211]
[1718293579558,0.009427,66574.0,66573.0,0.59653093]
[1718293579765,0.009427,66574.0,66573.0,0.59453093]
[1718293579983,0.009427,66574.0,66573.0,0.60453093]
[1718293580191,0.009427,66574.0,66573.0,0.44431993]
[1718293580399,0.009427,66574.0,66573.0,0.24631993]
[1718293580600,0.009427,66574.0,66573.0,0.26931993]
[1718293580811,0.059427,66574.0,66573.0,0.102]
[1718293581021,0.059427,66574.0,66573.0,0.002]
[1718293582203,0.059427,66574.0,66573.0,0.003]
[1718293582957,0.009427,66574.0,66573.0,0.29453093]
[1718293583163,0.009427,66574.0,66573.0,0.31853093]
[1718293583394,0.009427,66574.0,66573.0,0.32053093]
[1718293583599,0.009427,66574.0,66573.0,0.51853093]
[1718293584400,0.009427,66574.0,66573.0,0.51753093]
[1718293584808,0.009427,66574.0,66573.0,0.52753093]
[1718293585224,0.009427,66574.0,66573.0,0.37731993]
[1718293585425,0.009427,66574.0,66573.0,0.32753093]
[1718293585654,0.010427,66574.0,66573.0,0.33553093]
[1718293586212,0.009427,66574.0,66573.0,0.16731993]
[1718293586413,0.009427,66574.0,66573.0,0.023]
[1718293586618,0.05,66573.0,66567.0,0.023]
[1718293586813,0.07215996,66572.0,66568.0,0.14431993]
[1718293587020,0.07215996,66572.0,66569.0,0.123]
[1718293587317,0.3038,66571.0,66569.0,0.1]
[1718293587574,0.200217,66570.0,66569.0,0.1]
[1718293587779,0.05,66565.0,66554.0,0.150253]
[1718293587933,0.2519,66570.0,66551.0,0.2]
[1718293587934,0.07215996,66555.0,66551.0,0.2]
[1718293588537,0.05,66550.0,66549.0,0.01799945]
[1718293588763,0.05,66549.0,66547.0,0.060082]
[1718293588984,0.05,66543.0,66537.0,0.2]
[1718293589198,0.05,66543.0,66538.0,0.14431993]
[1718293590365,0.05,66543.0,66530.0,0.28]
[1718293590366,0.12215996,66539.0,66536.0,0.01631229]
[1718293590578,0.05,66535.0,66530.0,0.2]
[1718293590781,0.05,66540.0,66533.0,0.14431993]
[1718293590948,0.2525,66549.0,66545.0,0.150273]
[1718293591197,0.3025,66549.0,66546.0,0.14431993]
[1718293591589,0.3034,66558.0,66557.0,0.150247]
[1718293591971,0.3251,66562.0,66561.0,0.150238]
[1718293592188,0.3251,66569.0,66557.0,0.64431993]
[1718293592371,0.3251,66569.0,66561.0,0.14431993]
[1718293592372,0.50511975,66568.0,66561.0,0.14431993]
[1718293592583,0.50511975,66568.0,66558.0,0.12865126]
[1718293592584,0.05,66560.0,66558.0,0.16216864]
[1718293592783,0.05,66563.0,66561.0,0.150238]
[1718293592989,0.3034,66569.0,66562.0,0.023]
[1718293593206,0.3034,66569.0,66568.0,0.150222]
[1718293593441,0.3034,66569.0,66568.0,0.173222]
[1718293593590,0.3034,66569.0,66568.0,0.023]
[1718293593786,0.3034,66569.0,66559.0,0.14431993]
[1718293593787,0.05,66563.0,66559.0,0.14431993]
[1718293594092,0.12215996,66561.0,66560.0,0.123]
[1718293594500,0.05,66561.0,66560.0,0.123]
[1718293594697,0.05,66561.0,66560.0,0.273238]
[1718293595109,0.05,66561.0,66560.0,0.123]
[1718293595313,0.3502,66561.0,66560.0,0.023]
[1718293595543,0.05,66557.0,66554.0,0.023]
[1718293595747,0.05,66553.0,66551.0,0.1]
[1718293596034,0.2622,66552.0,66544.0,0.1]
[1718293596242,0.2622,66552.0,66545.0,0.14431993]
[1718293596447,0.05,66550.0,66545.0,0.14431993]
[1718293596888,0.05,66543.0,66534.0,0.2]
[1718293597091,0.3731,66543.0,66535.0,0.14431993]
[1718293597505,0.60115,66542.0,66535.0,0.14431993]
[1718293597769,0.65115,66542.0,66535.0,0.14431993]
[1718293598017,0.05,66535.0,66527.0,0.060103]
[1718293598233,0.05,66535.0,66517.0,0.3029]
[1718293598234,0.05,66531.0,66528.0,0.14431993]
[1718293598456,0.60115,66530.0,66528.0,0.13931993]
[1718293599763,1.08931975,66529.0,66518.0,0.01616506]
[1718293599968,0.05,66516.0,66506.0,0.2]
[1718293600179,0.60115,66515.0,66506.0,0.2]
[1718293601965,0.60115,66515.0,66507.0,0.14431993]
[1718293602168,0.60115,66515.0,66508.0,0.1]
[1718293602368,0.60115,66515.0,66514.0,1.66115193]
[1718293602567,0.60115,66515.0,66514.0,1.11766393]
[1718293602765,0.60115,66515.0,66507.0,0.08]
[1718293602766,0.05,66507.0,66494.0,0.00856]
[1718293602969,0.05,66504.0,66495.0,0.00856]
[1718293603197,0.60115,66503.0,66495.0,0.02690405]
[1718293603400,0.60115,66503.0,66495.0,0.00856]
[1718293603661,0.60115,66503.0,66496.0,0.14431993]
[1718293603862,0.05,66499.0,66495.0,0.00856]
[1718293604065,0.05,66496.0,66495.0,0.00856]
[1718293604300,0.65115,66496.0,66495.0,0.00856]
[1718293604477,0.814794,66492.0,66477.0,0.00856]
[1718293604678,1.415944,66492.0,66477.0,0.00856]
[1718293604924,1.395944,66492.0,66477.0,0.00856]
[1718293605143,1.415944,66492.0,66477.0,0.00856]
[1718293605903,1.415944,66492.0,66471.0,0.11005816]
[1718293605904,0.05,66483.0,66471.0,0.11005816]
[1718293606127,0.05,66472.0,66471.0,0.03005816]
[1718293606363,0.5943,66472.0,66471.0,0.03005816]
[1718293606589,1.19545,66472.0,66471.0,0.03005816]
[1718293607645,1.20945,66472.0,66471.0,0.03105816]
[1718293608197,1.20945,66472.0,66471.0,0.03005816]
[1718293608198,1.19545,66472.0,66471.0,0.03005816]
[1718293608576,1.20945,66472.0,66471.0,0.03105816]
[1718293609031,1.364289,66472.0,66471.0,0.001]
[1718293609256,0.96615,66472.0,66471.0,0.001]
[1718293609698,1.18385,66472.0,66471.0,0.001]
[1718293610136,1.15385,66472.0,66471.0,0.001]
[1718293610377,1.15385,66472.0,66471.0,0.151441]
[1718293610845,0.86385,66472.0,66471.0,0.151441]
[1718293611068,0.61615,66472.0,66471.0,0.71964393]
[1718293611333,0.61615,66472.0,66471.0,1.45592693]
[1718293611557,0.61615,66472.0,66471.0,1.98687993]
[1718293611558,0.3052131,66472.0,66471.0,1.98687993]
[1718293611784,0.2566,66504.0,66503.0,0.150369]
[1718293612007,0.210461,66525.0,66511.0,0.150351]
[1718293612008,0.060142,66525.0,66511.0,0.150351]
[1718293612234,1.03435979,66512.0,66511.0,0.250351]
[1718293612460,0.6014,66512.0,66511.0,0.69537293]
[1718293612898,0.6014,66512.0,66511.0,0.71537293]
[1718293613122,0.6014,66512.0,66511.0,1.04614493]
[1718293613355,0.6014,66512.0,66511.0,1.30404493]
[1718293613577,0.6014,66512.0,66511.0,1.20404493]
[1718293613818,0.6014,66512.0,66511.0,1.68954493]
[1718293614027,0.6014,66512.0,66511.0,1.63454493]
[1718293614266,0.6014,66512.0,66511.0,1.56113393]
[1718293614484,0.39507296,66556.0,66535.0,0.2]
[1718293614705,0.60111,66551.0,66536.0,0.1]
[1718293614928,0.60111,66551.0,66545.0,0.150273]
[1718293615217,0.02,66547.0,66523.0,1.18701639]
[1718293615461,0.02,66541.0,66524.0,0.023]
[1718293615694,0.60111,66540.0,66524.0,0.023]
[1718293615920,0.60111,66540.0,66520.0,0.123]
[1718293616134,0.60111,66540.0,66521.0,0.250327]
[1718293616359,0.2531,66539.0,66516.0,0.1]
[1718293616574,0.2531,66539.0,66516.0,0.24431993]
[1718293616575,0.07215996,66530.0,66516.0,0.24431993]
[1718293616826,0.60111,66529.0,66516.0,0.24431993]
[1718293617050,0.60111,66529.0,66511.0,0.014]
[1718293617051,0.07215996,66523.0,66511.0,0.014]
[1718293617283,0.60111,66522.0,66511.0,0.14431993]
[1718293617900,0.60111,66522.0,66512.0,0.14520467]
[1718293618078,0.07215996,66521.0,66512.0,0.11431993]
[1718293618256,0.60111,66520.0,66512.0,0.11431993]
[1718293618607,0.60111,66520.0,66513.0,0.123]
[1718293618780,0.60111,66520.0,66514.0,0.14431993]
[1718293619041,0.3196,66519.0,66513.0,0.1]
[1718293619223,0.150346,66513.0,66512.0,0.014]
[1718293619422,0.751456,66513.0,66512.0,0.014]
[1718293619622,0.60111,66513.0,66512.0,0.014]
[1718293620351,0.60111,66513.0,66512.0,0.164348]
[1718293620544,0.60111,66513.0,66512.0,0.150348]
[1718293620787,0.60111,66513.0,66512.0,0.29466793]
[1718293620906,0.60111,66513.0,66512.0,0.32166793]
[1718293621118,0.60111,66513.0,66512.0,1.22236493]
[1718293621315,0.60111,66513.0,66512.0,0.6]
[1718293621534,0.60111,66513.0,66512.0,0.91766793]
[1718293621734,0.60211,66513.0,66512.0,0.617]
[1718293622053,0.60211,66513.0,66512.0,0.117]
[1718293622259,0.60211,66513.0,66512.0,0.004]
[1718293622602,0.60111,66513.0,66512.0,0.154348]
[1718293622736,0.60111,66513.0,66512.0,0.254348]
[1718293622922,0.60111,66513.0,66512.0,0.1]
[1718293623125,0.60111,66513.0,66512.0,0.89466793]
[1718293623333,0.60111,66513.0,66512.0,1.23836493]
[1718293623756,0.60111,66513.0,66512.0,1.72703193]
[1718293624048,0.60211,66513.0,66512.0,1.75403193]
[1718293624243,0.60211,66513.0,66512.0,2.04072893]
[1718293624427,0.60111,66513.0,66512.0,2.02772893]
[1718293624629,0.60111,66513.0,66512.0,2.30652793]
[1718293624875,0.35211,66513.0,66512.0,2.41222893]
[1718293625031,0.35211,66513.0,66512.0,1.96746193]
[1718293625230,0.35211,66513.0,66512.0,1.65376493]
[1718293625231,0.35111,66513.0,66512.0,1.65376493]
[1718293625439,0.35111,66513.0,66512.0,2.05446193]
[1718293625658,0.68380579,66547.0,66541.0,0.2]
[1718293625875,0.60111,66546.0,66542.0,0.1]
[1718293626178,0.02,66543.0,66534.0,0.2]
[1718293626433,0.07215996,66538.0,66534.0,0.2]
[1718293626651,0.459276,66544.0,66534.0,0.2]
[1718293626652,0.60111,66537.0,66534.0,0.2]
[1718293626853,0.60111,66537.0,66536.0,0.150294]
[1718293627061,0.60111,66537.0,66534.0,0.2]
[1718293627448,0.60111,66537.0,66536.0,0.450883]
[1718293627649,0.60111,66537.0,66536.0,0.69520293]
[1718293627853,0.60111,66537.0,66536.0,0.41761393]
[1718293628058,0.60111,66537.0,66534.0,0.2]
[1718293628461,0.60111,66537.0,66535.0,0.1]
[1718293629865,0.60111,66537.0,66536.0,0.154294]
[1718293630066,0.60111,66537.0,66536.0,0.69520293]
[1718293630276,0.60111,66537.0,66536.0,1.01879193]
[1718293630669,0.60111,66537.0,66536.0,0.41761393]
[1718293631232,0.60111,66537.0,66536.0,0.42161393]
[1718293632101,0.60111,66537.0,66536.0,0.42461393]
[1718293632318,0.60111,66537.0,66536.0,1.02579193]
[1718293632519,0.60111,66537.0,66536.0,0.72520293]
[1718293632719,0.60111,66537.0,66536.0,0.42461393]
[1718293633104,0.60111,66537.0,66536.0,0.72520293]
[1718293633521,0.60111,66537.0,66536.0,1.04579193]
[1718293634128,0.60111,66537.0,66536.0,0.42461393]
[1718293634307,0.60111,66537.0,66536.0,0.107]
[1718293634534,1.072802,66537.0,66536.0,0.007]
[1718293634813,0.02,66533.0,66518.0,0.2]
[1718293635009,0.3261,66521.0,66518.0,0.2]
[1718293635290,0.150339,66516.0,66512.0,0.7174]
[1718293635487,0.24250596,66513.0,66512.0,0.7174]
[1718293635689,0.24250596,66513.0,66500.0,0.368]
[1718293635690,1.16368989,66513.0,66500.0,0.368]
[1718293635833,0.2448,66504.0,66500.0,0.368]
[1718293636041,0.60111,66503.0,66500.0,0.368]
[1718293636247,0.60111,66503.0,66502.0,0.2]
[1718293636718,0.60111,66503.0,66502.0,0.350371]
[1718293636948,0.60111,66503.0,66502.0,0.79543293]
[1718293637160,0.59816357,66503.0,66502.0,1.41691693]
[1718293637406,0.57052407,66503.0,66502.0,1.72481693]
[1718293637637,0.55577674,66503.0,66502.0,1.72481693]
[1718293637862,0.009,66513.0,66512.0,1.601812]
[1718293638073,0.009,66513.0,66512.0,1.66913193]
[1718293638283,0.22243196,66546.0,66532.0,0.7]
[1718293638504,0.2659,66550.0,66533.0,0.1]
[1718293638717,0.02,66549.0,66533.0,0.1]
[1718293638932,0.2659,66550.0,66533.0,0.1]
[1718293639370,0.2659,66550.0,66543.0,0.150276]
[1718293639590,0.2659,66550.0,66544.0,0.150276]
[1718293639804,0.2659,66550.0,66540.0,0.5]
[1718293640021,0.02,66575.0,66546.0,0.951357]
[1718293640229,0.2448,66571.0,66570.0,0.150217]
[1718293640469,0.44238679,66574.0,66571.0,0.1]
[1718293640690,0.009427,66574.0,66573.0,0.170211]
[1718293640914,0.009427,66574.0,66573.0,0.593633]
[1718293641089,0.009427,66574.0,66573.0,1.20593465]
[1718293641235,0.009427,66574.0,66573.0,1.53966997]
[1718293641434,0.009427,66574.0,66573.0,1.13924797]
[1718293641639,0.26550501,66604.0,66579.0,1.258097]
[1718293641640,1e-08,66580.0,66579.0,1.258097]
[1718293642151,0.26550501,66604.0,66579.0,1.258097]
[1718293642152,0.00940501,66604.0,66579.0,3.54365588]
[1718293642353,0.00940501,66604.0,66603.0,0.850143]
[1718293642536,0.00940501,66604.0,66603.0,0.8]
[1718293642960,0.00940501,66604.0,66603.0,0.84507388]
[1718293643169,0.00940501,66604.0,66603.0,0.99521688]
[1718293643416,0.00940501,66604.0,66603.0,1.65079281]
[1718293643644,0.00940501,66604.0,66603.0,1.64072281]
[1718293643858,0.00940501,66604.0,66603.0,1.16253681]
[1718293644068,0.00940501,66604.0,66603.0,1.11746293]
[1718293644288,0.00940501,66604.0,66603.0,0.94931993]